fUST/lending_fUST_20240801
["ID","MTS","AMOUNT","RATE_DAILY","PERIOD"]
[333768820,1722465049730,-557.23,0.00013972,2]
[333768821,1722465049741,-500.0,0.00013972,2]
[333768822,1722465049751,-500.0,0.00013972,2]
[333768823,1722465049760,-500.0,0.00013972,2]
[333768824,1722465049770,-500.0,0.00013972,2]
[333768825,1722465049780,-503.63,0.00013972,2]
[333768826,1722465049792,-500.0,0.00013972,2]
[333768827,1722465049810,-500.0,0.00013972,2]
[333768828,1722465049821,-858.04,0.00013972,2]
[333768829,1722465049831,-500.0,0.00013972,2]
[333768830,1722465049841,-500.0,0.00013972,2]
[333768831,1722465049852,-500.0,0.00013972,2]
[333768832,1722465049865,-500.0,0.00013972,2]
[333768833,1722465049875,-377.70195919,0.00013972,2]
[333768834,1722465049884,-500.0,0.00013972,2]
[333768835,1722465049895,-1214.86,0.00013972,2]
[333768836,1722465049904,-500.0,0.00013972,2]
[333768837,1722465049914,-500.0,0.00013972,2]
[333768838,1722465049924,-506.22332503,0.00013972,2]
[333768839,1722465049934,-500.0,0.00013972,2]
[333768840,1722465049944,-500.0,0.00013972,2]
[333768841,1722465049955,-500.0,0.00013972,2]
[333768842,1722465049965,-500.0,0.00013972,2]
[333768843,1722465049975,-500.0,0.00013972,2]
[333768844,1722465049986,-573.26360968,0.00013972,2]
[333768845,1722465049995,-526.81,0.00013972,2]
[333768846,1722465050005,-500.0,0.00013972,2]
[333768847,1722465050015,-151.0,0.00013972,2]
[333768848,1722465050026,-500.0,0.00013972,2]
[333768849,1722465050035,-343.92279372,0.00013972,2]
[333768850,1722465050045,-500.0,0.00013972,2]
[333768851,1722465050055,-500.0,0.00013972,2]
[333768852,1722465050065,-500.0,0.00013972,2]
[333768853,1722465050074,-500.0,0.00013972,2]
[333768854,1722465050084,-500.0,0.00013972,2]
[333768855,1722465050094,-151.0,0.00013972,2]
[333768856,1722465050103,-500.0,0.00013972,2]
[333768857,1722465050119,-593.31,0.00013972,2]
[333768858,1722465050129,-1147.33,0.00013972,2]
[333768859,1722465050139,-151.0,0.00013972,2]
[333768860,1722465050149,-151.0,0.00013972,2]
[333768861,1722465050158,-500.0,0.00013972,2]
[333768862,1722465050168,-500.0,0.00013972,2]
[333768863,1722465050178,-500.0,0.00013972,2]
[333768864,1722465050188,-696.23,0.00013972,2]
[333768865,1722465050198,-556.79,0.00013972,2]
[333768866,1722465050208,-500.0,0.00013972,2]
[333768867,1722465050219,-500.0,0.00013972,2]
[333768868,1722465050228,-500.0,0.00013972,2]
[333768869,1722465050238,-500.0,0.00013972,2]
[333768870,1722465050249,-151.0,0.00013972,2]
[333768871,1722465050258,-500.0,0.00013972,2]
[333768872,1722465050268,-500.0,0.00013972,2]
[333768873,1722465050278,-500.0,0.00013972,2]
[333768874,1722465050287,-500.0,0.00013972,2]
[333768875,1722465050299,-500.0,0.00013972,2]
[333768876,1722465050308,-1597.78,0.00013972,2]
[333768877,1722465050318,-500.0,0.00013972,2]
[333768878,1722465050327,-500.0,0.00013972,2]
[333768879,1722465050336,-500.0,0.00013972,2]
[333768880,1722465050345,-500.0,0.00013972,2]
[333768881,1722465050354,-151.0,0.00013972,2]
[333768882,1722465050367,-500.0,0.00013972,2]
[333768883,1722465050376,-500.0,0.00013972,2]
[333768884,1722465050386,-500.0,0.00013972,2]
[333768885,1722465050396,-415.85294918,0.00013972,2]
[333768886,1722465050406,-500.0,0.00013972,2]
[333768887,1722465050418,-424.418576,0.00013972,2]
[333768888,1722465050428,-432.67944057,0.00013972,2]
[333768889,1722465050439,-424.418576,0.00013972,2]
[333768890,1722465050448,-500.0,0.00013972,2]
[333768891,1722465050458,-500.0,0.00013972,2]
[333768892,1722465050468,-500.0,0.00013972,2]
[333768893,1722465050477,-200.165738,0.00013972,2]
[333768894,1722465050487,-200.165738,0.00013972,2]
[333768895,1722465050498,-500.0,0.00013972,2]
[333768896,1722465050507,-500.0,0.00013972,2]
[333768897,1722465050518,-500.0,0.00013972,2]
[333768898,1722465050527,-500.0,0.00013972,2]
[333768899,1722465050536,-500.0,0.00013972,2]
[333768900,1722465050545,-500.0,0.00013972,2]
[333768901,1722465050554,-500.0,0.00013972,2]
[333768902,1722465050563,-500.0,0.00013972,2]
[333768903,1722465050572,-500.0,0.00013972,2]
[333768904,1722465050582,-500.0,0.00013972,2]
[333768905,1722465050591,-500.0,0.00013972,2]
[333768906,1722465050689,-500.0,0.00013972,2]
[333768907,1722465050708,-500.0,0.00013972,2]
[333768908,1722465050718,-500.0,0.00013972,2]
[333768909,1722465050727,-151.0,0.00013972,2]
[333768910,1722465050736,-598.72,0.00013972,2]
[333768911,1722465050745,-500.0,0.00013972,2]
[333768912,1722465050754,-500.0,0.00013972,2]
[333768913,1722465050763,-500.0,0.00013972,2]
[333768914,1722465050773,-522.45691885,0.00013972,2]
[333768915,1722465050782,-543.15,0.00013972,2]
[333768916,1722465050795,-500.0,0.00013972,2]
[333768917,1722465050804,-500.0,0.00013972,2]
[333768918,1722465050813,-500.0,0.00013972,2]
[333768919,1722465050823,-151.0,0.00013972,2]
[333768920,1722465050832,-596.71,0.00013972,2]
[333768921,1722465050842,-1095.77,0.00013972,2]
[333768922,1722465050851,-500.0,0.00013972,2]
[333768923,1722465050863,-151.0,0.00013972,2]
[333768924,1722465050874,-500.0,0.00013972,2]
[333768925,1722465050884,-500.0,0.00013972,2]
[333768926,1722465050894,-500.0,0.00013972,2]
[333768927,1722465050903,-500.0,0.00013972,2]
[333768928,1722465050913,-500.0,0.00013972,2]
[333768929,1722465050923,-821.803677,0.00013972,2]
[333768930,1722465050932,-204.206899,0.00013972,2]
[333768931,1722465050942,-500.0,0.00013972,2]
[333768932,1722465050952,-763.92,0.00013972,2]
[333768933,1722465050962,-167.467709,0.00013972,2]
[333768934,1722465050972,-821.803677,0.00013972,2]
[333768935,1722465050983,-204.206899,0.00013972,2]
[333768936,1722465050993,-500.0,0.00013972,2]
[333768937,1722465051003,-500.0,0.00013972,2]
[333768938,1722465051012,-167.467709,0.00013972,2]
[333768939,1722465051021,-500.0,0.00013972,2]
[333768940,1722465051031,-1650.89,0.00013972,2]
[333768941,1722465051040,-2459.64,0.00013972,2]
[333768942,1722465051050,-500.0,0.00013972,2]
[333768943,1722465051060,-6589.1,0.00013972,2]
[333768944,1722465051070,-765.61,0.00013972,2]
[333768945,1722465051080,-1404.86,0.00013972,2]
[333768946,1722465051091,-685.62,0.00013972,2]
[333768947,1722465051101,-500.0,0.00013972,2]
[333768948,1722465051112,-1128.318205,0.00013972,2]
[333768949,1722465051121,-1128.318205,0.00013972,2]
[333768950,1722465051130,-510.73546076,0.00013972,2]
[333768951,1722465051140,-500.0,0.00013972,2]
[333768952,1722465051150,-364.661582,0.00013972,2]
[333768953,1722465051160,-500.0,0.00013972,2]
[333768954,1722465051170,-364.661582,0.00013972,2]
[333768955,1722465051179,-151.0,0.00013972,2]
[333768956,1722465051189,-2645.66,0.00013972,2]
[333768957,1722465051199,-500.0,0.00013972,2]
[333768958,1722465051210,-500.0,0.00013972,2]
[333768959,1722465051220,-461.08808009,0.00013972,2]
[333768960,1722465051230,-500.0,0.00013972,2]
[333768961,1722465051240,-500.0,0.00013972,2]
[333768962,1722465051251,-500.0,0.00013972,2]
[333768963,1722465051262,-500.0,0.00013972,2]
[333768964,1722465051271,-863.6,0.00013972,2]
[333768965,1722465051281,-500.0,0.00013972,2]
[333768966,1722465051291,-500.0,0.00013972,2]
[333768967,1722465051301,-1240.85,0.00013972,2]
[333768968,1722465051311,-1390.11,0.00013972,2]
[333768969,1722465051320,-500.0,0.00013972,2]
[333768970,1722465051330,-151.0,0.00013972,2]
[333768971,1722465051341,-513.21223361,0.00013972,2]
[333768972,1722465051350,-155.793561,0.00013972,2]
[333768973,1722465051361,-500.0,0.00013972,2]
[333768974,1722465051372,-500.0,0.00013972,2]
[333768975,1722465051382,-596.74426326,0.00013972,2]
[333768976,1722465051394,-4839.71,0.00013972,2]
[333768977,1722465051404,-500.0,0.00013972,2]
[333768978,1722465051412,-500.0,0.00013972,2]
[333768979,1722465051421,-500.0,0.00013972,2]
[333768980,1722465051431,-500.0,0.00013972,2]
[333768981,1722465051442,-1144.32,0.00013972,2]
[333768982,1722465051451,-1039.2,0.00013972,2]
[333768983,1722465051461,-500.0,0.00013972,2]
[333768984,1722465051471,-500.0,0.00013972,2]
[333768985,1722465051481,-500.0,0.00013972,2]
[333768986,1722465051490,-500.0,0.00013972,2]
[333768987,1722465051500,-500.0,0.00013972,2]
[333768988,1722465051510,-1181.55,0.00013972,2]
[333768989,1722465051520,-500.0,0.00013972,2]
[333768990,1722465051529,-500.0,0.00013972,2]
[333768991,1722465051538,-1517.04,0.00013972,2]
[333768992,1722465051548,-525.19,0.00013972,2]
[333768993,1722465051558,-630.24,0.00013972,2]
[333768994,1722465051568,-613.8603113,0.00013972,2]
[333768995,1722465051579,-540.96,0.00013972,2]
[333768996,1722465051589,-829.14,0.00013972,2]
[333768997,1722465051599,-500.0,0.00013972,2]
[333768998,1722465051609,-530.49,0.00013972,2]
[333768999,1722465051619,-1951.27,0.00013972,2]
[333769000,1722465051629,-517.73,0.00013972,2]
[333769001,1722465051639,-500.0,0.00013972,2]
[333769002,1722465051650,-500.0,0.00013972,2]
[333769003,1722465051660,-500.0,0.00013972,2]
[333769004,1722465051669,-500.0,0.00013972,2]
[333769005,1722465051678,-500.0,0.00013972,2]
[333769006,1722465051688,-999.26,0.00013972,2]
[333769007,1722465051697,-500.0,0.00013972,2]
[333769008,1722465051707,-1150.11,0.00013972,2]
[333769009,1722465051718,-614.73,0.00013972,2]
[333769010,1722465051727,-2075.14,0.00013972,2]
[333769011,1722465051737,-957.28,0.00013972,2]
[333769012,1722465051747,-810.9,0.00013972,2]
[333769013,1722465051757,-500.0,0.00013972,2]
[333769014,1722465051767,-1208.54,0.00013972,2]
[333769015,1722465051776,-500.0,0.00013972,2]
[333769016,1722465051786,-983.97,0.00013972,2]
[333769017,1722465051799,-664.642227,0.00013972,2]
[333769018,1722465051809,-1174.19,0.00013972,2]
[333769019,1722465051820,-185.31897515,0.00013972,2]
[333769020,1722465051829,-664.642227,0.00013972,2]
[333769021,1722465051841,-769.58,0.00013972,2]
[333769022,1722465051851,-1292.5,0.00013972,2]
[333769023,1722465051861,-500.0,0.00013972,2]
[333769024,1722465051872,-6971.9,0.00013972,2]
[333769025,1722465051883,-2495.07,0.00013972,2]
[333769026,1722465051892,-514.85,0.00013972,2]
[333769027,1722465051902,-500.0,0.00013972,2]
[333769028,1722465051911,-151.0,0.00013972,2]
[333769029,1722465051922,-6032.19,0.00013972,2]
[333769030,1722465051932,-669.614833,0.00013972,2]
[333769031,1722465051942,-907.79,0.00013972,2]
[333769032,1722465051951,-669.614833,0.00013972,2]
[333769033,1722465051961,-678.12,0.00013972,2]
[333769034,1722465051971,-1372.5,0.00013972,2]
[333769035,1722465051981,-500.0,0.00013972,2]
[333769036,1722465051989,-351.38651064,0.00013972,2]
[333769037,1722465051999,-500.0,0.00013972,2]
[333769038,1722465052008,-2588.87,0.00013972,2]
[333769039,1722465052018,-767.36,0.00013972,2]
[333769040,1722465052027,-500.0,0.00013972,2]
[333769041,1722465052037,-500.0,0.00013972,2]
[333769042,1722465052047,-153.608702,0.00013972,2]
[333769043,1722465052058,-1111.82,0.00013972,2]
[333769044,1722465052068,-500.0,0.00013972,2]
[333769045,1722465052078,-907.34,0.00013972,2]
[333769046,1722465052090,-500.0,0.00013972,2]
[333769047,1722465052100,-422.504736,0.00013972,2]
[333769048,1722465052113,-1043.74,0.00013972,2]
[333769049,1722465052123,-500.0,0.00013972,2]
[333769050,1722465052133,-422.504736,0.00013972,2]
[333769051,1722465052144,-150.112233,0.00014,2]
[333769052,1722465052154,-150.112233,0.00014,2]
[333769053,1722465052163,-150.112233,0.00014,2]
[333769054,1722465052173,-200.0,0.00014096,2]
[333769055,1722465052182,-150.112233,0.000141,2]
[333769056,1722465052192,-150.112233,0.000141,2]
[333769057,1722465052203,-5310.91571796,0.00014189,2]
[333769058,1722465052212,-150.112233,0.000142,2]
[333769059,1722465052222,-150.112233,0.000142,2]
[333769060,1722465052232,-500.0,0.00014213,2]
[333769061,1722465052241,-151.0,0.00014214,2]
[333769062,1722465052251,-977.08211555,0.00014227,2]
[333769063,1722465052262,-838.33,0.00014235,2]
[333769064,1722465052272,-838.33,0.00014235,2]
[333769065,1722465052282,-471.0491,0.00014235,2]
[333769066,1722465052292,-151.0,0.00014236,2]
[333769067,1722465052301,-151.0,0.00014236,2]
[333769068,1722465052311,-200.165738,0.00014236,2]
[333769069,1722465052320,-200.165738,0.00014236,2]
[333769070,1722465052331,-838.33,0.00014244,2]
[333769071,1722465052341,-838.33,0.00014245,2]
[333769072,1722465052351,-838.33,0.00014245,2]
[333769073,1722465052363,-838.33,0.00014245,2]
[333769074,1722465052373,-151.0,0.00014246,2]
[333769075,1722465052383,-151.0,0.00014246,2]
[333769076,1722465052393,-151.0,0.00014246,2]
[333769077,1722465052403,-7966.31089195,0.00014246,2]
[333769078,1722465052413,-189.73840327,0.00014246,2]
[333769079,1722465052424,-1629.26928721,0.00014246,2]
[333769080,1722465052433,-3767.82702172,0.00014246,2]
[333769081,1722465052443,-500.0,0.00014246,2]
[333769082,1722465052453,-642.68478578,0.00014246,2]
[333769083,1722465052463,-673.03,0.00014246,2]
[333769084,1722465052472,-151.0,0.00014246,2]
[333769085,1722465052482,-500.0,0.00014246,2]
[333769086,1722465052492,-500.0,0.00014246,2]
[333769087,1722465052502,-500.0,0.00014246,2]
[333769088,1722465052512,-151.0,0.00014246,2]
[333769089,1722465052522,-500.0,0.00014246,2]
[333769090,1722465052533,-151.0,0.00014246,2]
[333769091,1722465052542,-386.5667,0.00014246,2]
[333769092,1722465052553,-386.5667,0.00014246,2]
[333769093,1722465052563,-500.0,0.00014246,2]
[333769094,1722465052573,-500.0,0.00014246,2]
[333769095,1722465052583,-500.0,0.00014246,2]
[333769096,1722465052593,-151.0,0.00014246,2]
[333769097,1722465052603,-500.0,0.00014246,2]
[333769098,1722465052613,-877.02,0.00014246,2]
[333769099,1722465052623,-500.0,0.00014246,2]
[333769100,1722465052632,-210.5929093,0.00014246,2]
[333769101,1722465052641,-500.0,0.00014246,2]
[333769102,1722465052651,-557.23,0.00014246,2]
[333769103,1722465052661,-500.0,0.00014246,2]
[333769104,1722465052671,-503.63,0.00014246,2]
[333769105,1722465052681,-500.0,0.00014246,2]
[333769106,1722465052691,-858.04,0.00014246,2]
[333769107,1722465052702,-500.0,0.00014246,2]
[333769108,1722465052713,-500.0,0.00014246,2]
[333769109,1722465052724,-500.0,0.00014246,2]
[333769110,1722465052735,-1214.86,0.00014246,2]
[333769111,1722465052747,-500.0,0.00014246,2]
[333769112,1722465052844,-500.0,0.00014246,2]
[333769113,1722465052854,-526.81,0.00014246,2]
[333769114,1722465052866,-500.0,0.00014246,2]
[333769115,1722465052876,-500.0,0.00014246,2]
[333769116,1722465052885,-500.0,0.00014246,2]
[333769117,1722465052894,-595.015461,0.00014246,2]
[333769118,1722465052904,-593.31,0.00014246,2]
[333769119,1722465052915,-1147.33,0.00014246,2]
[333769120,1722465052925,-500.0,0.00014246,2]
[333769121,1722465052935,-500.0,0.00014246,2]
[333769122,1722465052946,-696.23,0.00014246,2]
[333769123,1722465052957,-500.0,0.00014246,2]
[333769124,1722465052967,-556.79,0.00014246,2]
[333769125,1722465052977,-500.0,0.00014246,2]
[333769126,1722465052986,-1597.78,0.00014246,2]
[333769127,1722465052996,-500.0,0.00014246,2]
[333769128,1722465053005,-500.0,0.00014246,2]
[333769129,1722465053015,-151.0,0.00014246,2]
[333769130,1722465053025,-424.418576,0.00014246,2]
[333769131,1722465053034,-424.418576,0.00014246,2]
[333769132,1722465053043,-500.0,0.00014246,2]
[333769133,1722465053053,-500.0,0.00014246,2]
[333769134,1722465053064,-500.0,0.00014246,2]
[333769135,1722465053073,-500.0,0.00014246,2]
[333769136,1722465053082,-500.0,0.00014246,2]
[333769137,1722465053092,-500.0,0.00014246,2]
[333769138,1722465053102,-500.0,0.00014246,2]
[333769139,1722465053112,-500.0,0.00014246,2]
[333769140,1722465053122,-500.0,0.00014246,2]
[333769141,1722465053134,-500.0,0.00014246,2]
[333769142,1722465053146,-500.0,0.00014246,2]
[333769143,1722465053157,-487.57678047,0.00014246,2]
[333769144,1722465053167,-500.0,0.00014246,2]
[333769145,1722465053178,-500.0,0.00014246,2]
[333769146,1722465053190,-500.0,0.00014246,2]
[333769147,1722465053199,-304.08146508,0.00014246,2]
[333769148,1722465053210,-151.0,0.00014246,2]
[333769149,1722465053219,-543.15,0.00014246,2]
[333769150,1722465053229,-500.0,0.00014246,2]
[333769151,1722465053239,-500.0,0.00014246,2]
[333769152,1722465053249,-151.0,0.00014246,2]
[333769153,1722465053259,-596.71,0.00014246,2]
[333769154,1722465053268,-1095.77,0.00014246,2]
[333769155,1722465053277,-409.64230712,0.00014246,2]
[333769156,1722465053287,-151.0,0.00014246,2]
[333769157,1722465053297,-309.32472385,0.00014246,2]
[333769158,1722465053306,-500.0,0.00014246,2]
[333769159,1722465053317,-500.0,0.00014246,2]
[333769160,1722465053327,-500.0,0.00014246,2]
[333769161,1722465053337,-500.0,0.00014246,2]
[333769162,1722465053347,-821.803677,0.00014246,2]
[333769163,1722465053356,-500.0,0.00014246,2]
[333769164,1722465053367,-204.206899,0.00014246,2]
[333769165,1722465053376,-763.92,0.00014246,2]
[333769166,1722465053385,-821.803677,0.00014246,2]
[333769167,1722465053396,-204.206899,0.00014246,2]
[333769168,1722465053406,-500.0,0.00014246,2]
[333769169,1722465053415,-167.467709,0.00014246,2]
[333769170,1722465053425,-500.0,0.00014246,2]
[333769171,1722465053435,-167.467709,0.00014246,2]
[333769172,1722465053445,-1650.89,0.00014246,2]
[333769173,1722465053455,-2459.64,0.00014246,2]
[333769174,1722465053465,-500.0,0.00014246,2]
[333769175,1722465053475,-6589.1,0.00014246,2]
[333769176,1722465053484,-765.61,0.00014246,2]
[333769177,1722465053495,-1404.86,0.00014246,2]
[333769178,1722465053505,-685.62,0.00014246,2]
[333769179,1722465053515,-500.0,0.00014246,2]
[333769180,1722465053525,-1128.318205,0.00014246,2]
[333769181,1722465053535,-1128.318205,0.00014246,2]
[333769182,1722465053545,-500.0,0.00014246,2]
[333769183,1722465053554,-364.661582,0.00014246,2]
[333769184,1722465053564,-500.0,0.00014246,2]
[333769185,1722465053574,-364.661582,0.00014246,2]
[333769186,1722465053583,-151.0,0.00014246,2]
[333769187,1722465053593,-2645.66,0.00014246,2]
[333769188,1722465053602,-500.0,0.00014246,2]
[333769189,1722465053614,-500.0,0.00014246,2]
[333769190,1722465053624,-500.0,0.00014246,2]
[333769191,1722465053634,-863.6,0.00014246,2]
[333769192,1722465053645,-500.0,0.00014246,2]
[333769193,1722465053655,-500.0,0.00014246,2]
[333769194,1722465053665,-1240.85,0.00014246,2]
[333769195,1722465053675,-1390.11,0.00014246,2]
[333769196,1722465053685,-500.0,0.00014246,2]
[333769197,1722465053694,-500.0,0.00014246,2]
[333769198,1722465053704,-4839.71,0.00014246,2]
[333769199,1722465053713,-333.58264193,0.00014246,2]
[333769200,1722465053723,-500.0,0.00014246,2]
[333769201,1722465053735,-500.0,0.00014246,2]
[333769202,1722465053746,-500.0,0.00014246,2]
[333769203,1722465053757,-1144.32,0.00014246,2]
[333769204,1722465053768,-1039.2,0.00014246,2]
[333769205,1722465053778,-500.0,0.00014246,2]
[333769206,1722465053793,-500.0,0.00014246,2]
[333769207,1722465053807,-500.0,0.00014246,2]
[333769208,1722465053819,-515.02745838,0.00014246,2]
[333769209,1722465053831,-1181.55,0.00014246,2]
[333769210,1722465053841,-1517.04,0.00014246,2]
[333769211,1722465053852,-525.19,0.00014246,2]
[333769212,1722465053864,-630.24,0.00014246,2]
[333769213,1722465053879,-540.96,0.00014246,2]
[333769214,1722465053892,-829.14,0.00014246,2]
[333769215,1722465053904,-500.0,0.00014246,2]
[333769216,1722465053913,-530.49,0.00014246,2]
[333769217,1722465053923,-1951.27,0.00014246,2]
[333769218,1722465053932,-517.73,0.00014246,2]
[333769219,1722465053941,-500.0,0.00014246,2]
[333769220,1722465053951,-500.0,0.00014246,2]
[333769221,1722465053961,-500.0,0.00014246,2]
[333769222,1722465053971,-999.26,0.00014246,2]
[333769223,1722465053981,-1150.11,0.00014246,2]
[333769224,1722465053990,-614.73,0.00014246,2]
[333769225,1722465054000,-2075.14,0.00014246,2]
[333769226,1722465054009,-957.28,0.00014246,2]
[333769227,1722465054019,-810.9,0.00014246,2]
[333769228,1722465054028,-500.0,0.00014246,2]
[333769229,1722465054038,-1208.54,0.00014246,2]
[333769230,1722465054047,-983.97,0.00014246,2]
[333769231,1722465054056,-664.642227,0.00014246,2]
[333769232,1722465054066,-1174.19,0.00014246,2]
[333769233,1722465054076,-664.642227,0.00014246,2]
[333769234,1722465054085,-769.58,0.00014246,2]
[333769235,1722465054094,-1292.5,0.00014246,2]
[333769236,1722465054103,-6971.9,0.00014246,2]
[333769237,1722465054115,-2495.07,0.00014246,2]
[333769238,1722465054125,-514.85,0.00014246,2]
[333769239,1722465054134,-500.0,0.00014246,2]
[333769240,1722465054144,-6032.19,0.00014246,2]
[333769241,1722465054153,-669.614833,0.00014246,2]
[333769242,1722465054162,-907.79,0.00014246,2]
[333769243,1722465054172,-678.12,0.00014246,2]
[333769244,1722465054181,-669.614833,0.00014246,2]
[333769245,1722465054191,-1372.5,0.00014246,2]
[333769246,1722465054200,-500.0,0.00014246,2]
[333769247,1722465054210,-500.0,0.00014246,2]
[333769248,1722465054219,-2588.87,0.00014246,2]
[333769249,1722465054229,-767.36,0.00014246,2]
[333769250,1722465054239,-500.0,0.00014246,2]
[333769251,1722465054248,-1111.82,0.00014246,2]
[333769252,1722465054258,-500.0,0.00014246,2]
[333769253,1722465054268,-907.34,0.00014246,2]
[333769254,1722465054277,-500.0,0.00014246,2]
[333769255,1722465054287,-422.504736,0.00014246,2]
[333769256,1722465054296,-1043.74,0.00014246,2]
[333769257,1722465054306,-422.504736,0.00014246,2]
[333769258,1722465054316,-183.57969,0.00014247,2]
[333769259,1722465054326,-750.0,0.00014247,2]
[333769260,1722465054336,-150.112233,0.000143,2]
[333769261,1722465054346,-582.305,0.0001432,2]
[333769262,1722465054355,-1410.0,0.0001432,2]
[333769263,1722465054366,-150.112233,0.000144,2]
[333769264,1722465054376,-305.360739,0.000145,5]
[333769265,1722465054385,-150.112233,0.000145,2]
[333769266,1722465054395,-150.112233,0.000145,2]
[333769267,1722465054404,-954.0,0.000145,2]
[333769268,1722465054414,-838.33,0.00014509,2]
[333769269,1722465054423,-838.33,0.00014509,2]
[333769270,1722465054433,-838.33,0.00014509,2]
[333769271,1722465054443,-838.33,0.00014509,2]
[333769272,1722465054453,-151.0,0.0001451,2]
[333769273,1722465054462,-151.0,0.0001451,2]
[333769274,1722465054472,-151.0,0.0001451,2]
[333769275,1722465054482,-838.33,0.00014519,2]
[333769276,1722465054492,-838.33,0.00014519,2]
[333769277,1722465054501,-838.33,0.00014519,2]
[333769278,1722465054511,-151.0,0.0001452,2]
[333769279,1722465054520,-151.0,0.0001452,2]
[333769280,1722465054529,-151.0,0.0001452,2]
[333769281,1722465054540,-500.0,0.0001452,2]
[333769282,1722465054549,-673.03,0.0001452,2]
[333769283,1722465054558,-151.0,0.0001452,2]
[333769284,1722465054568,-500.0,0.0001452,2]
[333769285,1722465054578,-500.0,0.0001452,2]
[333769286,1722465054587,-500.0,0.0001452,2]
[333769287,1722465054597,-151.0,0.0001452,2]
[333769288,1722465054607,-500.0,0.0001452,2]
[333769289,1722465054619,-386.5667,0.0001452,2]
[333769290,1722465054628,-386.5667,0.0001452,2]
[333769291,1722465054638,-500.0,0.0001452,2]
[333769292,1722465054648,-500.0,0.0001452,2]
[333769293,1722465054661,-500.0,0.0001452,2]
[333769294,1722465054671,-500.0,0.0001452,2]
[333769295,1722465054681,-877.02,0.0001452,2]
[333769296,1722465054694,-500.0,0.0001452,2]
[333769297,1722465054704,-500.0,0.0001452,2]
[333769298,1722465054716,-557.23,0.0001452,2]
[333769299,1722465054727,-500.0,0.0001452,2]
[333769300,1722465054738,-503.63,0.0001452,2]
[333769301,1722465054748,-858.04,0.0001452,2]
[333769302,1722465054843,-500.0,0.0001452,2]
[333769303,1722465054853,-500.0,0.0001452,2]
[333769304,1722465054864,-1214.86,0.0001452,2]
[333769305,1722465054874,-500.0,0.0001452,2]
[333769306,1722465054883,-457.79257691,0.0001452,2]
[333769307,1722465054893,-526.81,0.0001452,2]
[333769308,1722465054903,-379.22220257,0.0001452,2]
[333769309,1722465054912,-500.0,0.0001452,2]
[333769310,1722465054922,-500.0,0.0001452,2]
[333769311,1722465054932,-593.31,0.0001452,2]
[333769312,1722465054942,-1147.33,0.0001452,2]
[333769313,1722465054952,-151.0,0.0001452,2]
[333769314,1722465054961,-500.0,0.0001452,2]
[333769315,1722465054970,-500.0,0.0001452,2]
[333769316,1722465054980,-696.23,0.0001452,2]
[333769317,1722465054991,-500.0,0.0001452,2]
[333769318,1722465055001,-556.79,0.0001452,2]
[333769319,1722465055011,-265.61660742,0.0001452,2]